bitfinex/quotes_ETHUSD_20250620
["timestamp","ask_amount","ask_price","bid_price","bid_amount"]
[1750410056709,2.04831879,2556.9,2556.8,3.91113892]
[1750410057015,2.04832636,2556.9,2556.8,3.91113892]
[1750410057318,2.0485678,2556.9,2556.8,3.91113892]
[1750410057682,2.0485678,2556.9,2556.7,3.91121289]
[1750410057881,0.36260491,2556.8,2556.7,3.91121289]
[1750410058082,0.36260491,2556.8,2556.7,3.96801289]
[1750410058632,0.36260491,2556.8,2556.7,3.91121289]
[1750410058792,0.36260491,2556.8,2556.7,3.96801289]
[1750410058992,0.36260039,2556.8,2556.7,3.96801289]
[1750410059195,0.36259884,2556.8,2556.7,3.96801289]
[1750410061006,1.686,2556.9,2556.8,3.91113892]
[1750410061229,2.04859644,2556.9,2556.8,3.91113892]
[1750410061537,2.04859411,2556.9,2556.8,3.91113892]
[1750410062041,2.04855871,2556.9,2556.8,3.91113892]
[1750410062245,2.04855871,2556.9,2556.7,3.91120927]
[1750410062398,0.36255871,2556.8,2556.7,3.91120927]
[1750410062596,0.36253186,2556.8,2556.5,4.69382288]
[1750410062800,2.514,2556.9,2556.6,3.91144488]
[1750410063039,0.36250977,2556.8,2556.6,3.91144488]
[1750410063212,0.36250977,2556.7,2556.6,3.91144488]
[1750410063412,0.36250977,2556.7,2556.5,3.91150426]
[1750410063413,0.36250977,2556.7,2556.5,3.91155516]
[1750410063624,0.36255028,2556.6,2556.5,3.91155516]
[1750410064024,0.36260686,2556.6,2556.5,3.91155516]
[1750410064641,2.575,2556.9,2556.6,3.91139204]
[1750410064804,0.36282073,2556.8,2556.6,3.91139204]
[1750410065009,0.36282073,2556.7,2556.6,3.91139204]
[1750410065214,0.36282073,2556.7,2556.5,3.91149649]
[1750410065414,0.36282073,2556.6,2556.5,3.91149649]
[1750410065609,2.575,2556.9,2556.5,3.91149649]
[1750410065817,0.36300924,2556.8,2556.4,4.51848088]
[1750410066030,0.36300924,2556.7,2556.5,3.91157693]
[1750410066231,0.36300924,2556.6,2556.5,3.91157693]
[1750410066646,0.36300924,2556.6,2556.4,4.51846979]
[1750410066817,0.36300924,2556.5,2556.4,4.51846979]
[1750410067016,0.36300924,2556.5,2556.4,6.08531919]
[1750410067441,2.575,2556.9,2556.5,3.9114599]
[1750410067614,0.36280284,2556.8,2556.5,3.9114599]
[1750410067810,0.36280284,2556.7,2556.6,3.91144488]
[1750410068251,0.36280284,2556.7,2556.4,0.55]
[1750410068425,0.36280284,2556.7,2556.3,0.8012]
[1750410068426,3.91182347,2556.4,2555.7,0.7636]
[1750410068614,0.36280284,2556.3,2555.8,3.91258426]
[1750410068811,0.42374822,2556.2,2555.9,3.91248037]
[1750410069054,0.36274822,2556.1,2555.9,3.91248037]
[1750410069357,0.36274822,2556.0,2555.9,4.82636505]
[1750410069649,0.36274822,2556.0,2555.9,5.37636505]
[1750410069857,0.36274822,2556.0,2555.9,5.43316505]
[1750410070278,1.686,2556.4,2556.1,3.91213882]
[1750410070460,1.686,2556.4,2555.9,1.52068468]
[1750410070461,1.747,2556.4,2556.2,3.91205033]
[1750410073050,1.747,2556.4,2556.3,3.91190392]
[1750410073250,1.747,2556.4,2556.2,3.91199111]
[1750410073580,12.39956213,2556.4,2556.0,3.91232816]
[1750410073779,6.80174389,2556.2,2555.8,0.55]
[1750410073981,0.8643,2556.1,2555.9,3.91251413]
[1750410074442,0.8643,2556.1,2555.9,3.91248103]
[1750410074644,0.8033,2556.1,2555.9,3.91251613]
[1750410075099,7.3279,2556.3,2555.9,3.91246129]
[1750410075602,7.3279,2556.3,2556.1,3.91220004]
[1750410075779,7.3279,2556.3,2555.9,3.96926129]
[1750410075968,7.3279,2556.3,2556.0,3.91227076]
[1750410076583,8.122,2556.3,2556.1,3.91208197]
[1750410077481,10.7632,2556.5,2556.1,3.91208197]
[1750410077695,10.061,2556.3,2556.1,3.91208197]
[1750410078488,0.77,2556.2,2556.1,3.91208197]
[1750410078689,0.77,2556.2,2556.0,3.91227935]
[1750410078889,10.0,2556.3,2556.1,3.91221]
[1750410079099,1.686,2556.4,2556.0,0.55]
[1750410079300,0.77,2556.6,2556.4,3.91162652]
[1750410079506,6.436,2556.7,2556.5,3.91155785]
[1750410079729,10.36180708,2556.6,2556.4,3.91167711]
[1750410080028,8.9088,2556.8,2556.5,3.91159788]
[1750410080231,0.361791,2556.7,2556.6,3.9113682]
[1750410080438,1.686,2556.8,2556.7,3.91129189]
[1750410080934,10.7868,2557.1,2556.8,3.91105075]
[1750410080935,8.121,2557.0,2556.8,3.91105075]
[1750410081134,8.121,2557.0,2556.7,3.91129189]
[1750410081135,18.121,2557.0,2556.9,3.91098595]
[1750410081321,18.48288143,2557.0,2556.9,3.91098595]
[1750410081523,18.48288143,2557.0,2556.5,0.7876]
[1750410081524,18.48288143,2557.0,2556.8,3.91107888]
[1750410081841,10.0,2557.0,2556.8,3.91107888]
[1750410082224,0.36188189,2556.9,2556.8,3.91107888]
[1750410082434,10.36188189,2557.1,2556.9,3.910908]
[1750410082649,0.36188189,2557.0,2556.8,3.91107498]
[1750410083354,0.36188189,2557.0,2556.7,4.46122643]
[1750410083652,7.10262578,2557.0,2556.6,3.91136285]
[1750410083844,0.36188189,2556.9,2556.6,3.91136285]
[1750410084139,0.36187325,2556.9,2556.7,3.9112906]
[1750410084504,0.36185134,2556.9,2556.7,3.9112906]
[1750410085564,0.8311,2556.8,2556.3,0.0036]
[1750410085767,7.63004389,2556.8,2556.5,3.91159445]
[1750410085932,7.63004389,2556.8,2556.2,7.1967]
[1750410085933,7.63004389,2556.8,2556.2,0.7627]
[1750410086254,7.63004389,2556.8,2556.1,3.91212472]
[1750410086255,10.65222137,2556.6,2556.1,3.91212472]
[1750410086417,0.0582,2556.3,2556.0,3.91226214]
[1750410086619,0.0582,2556.3,2555.7,0.0036]
[1750410086620,6.74074389,2556.2,2555.9,3.91250243]
[1750410086941,0.0582,2556.1,2555.8,3.91259232]
[1750410088123,0.0582,2556.1,2555.9,3.9124967]
[1750410088526,0.0582,2556.1,2556.0,3.91236306]
[1750410088927,0.0582,2556.1,2555.9,3.91247833]
[1750410089742,8.117,2556.2,2556.0,3.91236306]
[1750410090023,8.116,2556.2,2556.1,3.91210012]
[1750410091760,8.117,2556.6,2556.3,3.91189908]
[1750410091961,0.72360854,2556.5,2556.2,3.91199847]
[1750410092125,0.36180427,2556.5,2556.3,3.91178476]
[1750410092330,0.36180427,2556.5,2556.4,3.91175089]
[1750410092546,0.7237041,2556.5,2556.4,3.91175089]
[1750410092926,0.36189983,2556.5,2556.4,3.91175089]
[1750410093162,0.72382831,2556.5,2556.4,3.91175089]
[1750410093350,0.36192848,2556.5,2556.4,3.91175089]
[1750410094061,0.72400973,2556.5,2556.4,3.91175089]
[1750410094566,0.36192848,2556.5,2556.4,3.91175089]
[1750410094864,0.72402188,2556.5,2556.4,3.91175089]
[1750410095064,0.763093,2556.5,2556.4,3.91175089]
[1750410095263,0.72402188,2556.5,2556.4,3.91175089]
[1750410095427,6.79492848,2556.5,2556.4,3.91175089]
[1750410095627,0.36192848,2556.5,2556.4,3.91175089]
[1750410095828,0.36192848,2556.5,2555.8,3.91266354]
[1750410095829,0.0582,2556.3,2555.8,3.91254792]
[1750410096054,6.74074389,2556.1,2555.8,3.91254792]
[1750410096242,0.3621365,2556.0,2555.8,3.91254792]
[1750410096428,0.3621365,2556.0,2555.7,3.9127401]
[1750410096653,0.3621365,2556.0,2555.8,3.91260181]
[1750410096854,0.40120762,2556.0,2555.8,3.91266344]
[1750410097234,0.03907112,2556.0,2555.8,3.91266344]
[1750410097458,0.36221384,2556.0,2555.8,3.91266344]
[1750410097683,0.36221384,2556.0,2555.9,3.91251613]
[1750410098264,6.79421384,2556.0,2555.9,3.91251613]
[1750410098637,6.432,2556.0,2555.9,3.91251613]
[1750410098875,0.362115,2556.0,2555.9,3.91251613]
[1750410099166,6.432,2556.1,2556.0,3.91236306]
[1750410099470,6.794115,2556.1,2556.0,3.91236306]
[1750410101068,0.362115,2556.1,2556.0,3.91236306]
[1750410101232,7.2168,2556.4,2556.2,3.91205695]
[1750410101233,0.362115,2556.3,2556.2,3.91205695]
[1750410101442,10.0,2556.4,2556.3,3.91190392]
[1750410101644,17.15615991,2556.4,2556.3,3.91190392]
[1750410102285,0.7813,2555.7,2555.3,3.91336367]
[1750410102488,0.7813,2555.7,2554.8,0.8153]
[1750410102489,15.25676248,2555.6,2555.2,3.91348455]
[1750410102688,0.36190718,2555.5,2555.2,3.91348455]
[1750410102861,0.36190718,2555.5,2555.3,3.91342713]
[1750410103258,0.36190476,2555.5,2555.4,3.91328167]
[1750410103762,0.36191073,2555.6,2555.5,3.91308105]
[1750410104366,0.36152741,2555.6,2555.5,3.91308105]
[1750410104677,0.36152741,2555.6,2555.4,3.91319673]
[1750410105248,0.36152373,2555.6,2555.3,5.52486343]
[1750410105454,1.21682373,2555.6,2555.2,3.91349889]
[1750410105687,0.8553,2555.6,2555.2,3.91349889]
[1750410105853,0.89437112,2555.6,2555.2,3.91349889]
[1750410106467,0.89437112,2555.6,2555.3,3.91342949]
[1750410106664,0.89437112,2555.6,2555.2,4.46350633]
[1750410107199,0.89437112,2555.6,2555.3,3.91341889]
[1750410107656,4.80742852,2555.6,2555.2,4.46358289]
[1750410107855,10.0582,2555.2,2554.3,3.91496691]
[1750410108081,0.0582,2555.0,2554.6,3.91442833]
[1750410108391,0.0582,2555.0,2554.5,3.91455616]
[1750410108392,0.09727112,2555.0,2554.7,3.91434267]
[1750410109413,0.03907112,2555.0,2554.7,3.91434267]
[1750410109602,0.09727112,2555.0,2554.7,3.91434267]
[1750410110489,0.09727112,2555.0,2554.6,3.91449851]
[1750410110803,0.09727112,2555.0,2554.7,3.91425719]
[1750410111577,0.03907112,2555.0,2554.7,3.91425719]
[1750410112180,0.09807112,2555.0,2554.7,3.91425719]
[1750410112375,0.8151,2554.9,2554.6,3.91442506]
[1750410112602,0.8741,2554.9,2554.6,3.91442506]
[1750410113002,0.8741,2554.9,2554.7,3.91435002]
[1750410113622,6.47307112,2555.1,2554.9,3.91404751]
[1750410114176,6.47307112,2555.1,2555.0,3.91389432]
[1750410114373,6.47307112,2555.1,2554.9,3.91396367]
[1750410114578,6.47307112,2555.1,2555.0,3.91389432]
[1750410116289,8.8679,2555.2,2555.0,3.91389432]
[1750410116713,8.8679,2555.2,2555.1,3.91374114]
[1750410116920,10.0,2555.5,2554.8,0.0605]
[1750410117221,11.8375,2555.9,2555.2,0.55]
[1750410117417,6.8339734,2555.8,2555.6,3.91288573]
[1750410117577,6.47307112,2555.8,2555.6,3.91288573]
[1750410117782,16.47307112,2555.8,2555.6,3.91288573]
[1750410118002,16.434,2555.8,2555.6,3.91288573]
[1750410118409,16.434,2555.8,2555.5,3.91307193]
[1750410118584,6.493,2555.8,2555.4,3.91321182]
[1750410118780,10.03907112,2555.8,2555.4,3.91321182]
[1750410118986,6.493,2555.7,2555.4,3.91321182]
[1750410119212,6.493,2555.7,2555.5,3.9130739]
[1750410119213,6.434,2555.7,2555.5,3.9130739]
[1750410120103,10.0,2555.8,2555.7,3.91282231]
[1750410120426,16.79516207,2555.8,2555.6,3.91290255]
[1750410120597,16.434,2555.8,2555.6,3.91290255]
[1750410120798,16.434,2555.8,2555.7,3.97332231]
[1750410121114,10.0,2555.8,2555.7,3.97332231]
[1750410121420,1.682,2556.1,2556.0,3.91236098]
[1750410121719,1.682,2556.3,2556.0,3.97283736]
[1750410121924,16.79506916,2556.2,2556.1,3.91208373]
[1750410123279,16.79506916,2556.2,2555.9,3.91243642]
[1750410123478,16.493,2556.2,2556.0,3.91234476]
[1750410123679,16.493,2556.2,2555.9,3.91243594]
[1750410124320,16.493,2556.2,2556.0,3.9123553]
[1750410124503,16.434,2556.2,2556.0,3.9123553]
[1750410125106,0.7694,2555.7,2555.2,3.91344557]
[1750410125328,0.059,2555.4,2555.0,3.91381434]
[1750410125492,0.09807112,2555.4,2555.2,3.91358797]
[1750410125688,6.457,2555.4,2555.3,3.91342517]
[1750410125889,6.49607112,2555.4,2555.2,3.91349938]
[1750410126094,6.457,2555.4,2555.2,3.91349938]
[1750410127790,6.457,2555.4,2555.3,3.91343482]
[1750410128724,0.059,2555.3,2555.0,3.91380242]
[1750410129026,0.059,2555.3,2554.9,3.9139613]
[1750410129027,0.45953664,2555.3,2554.9,3.9139613]
[1750410129234,0.45954029,2555.3,2554.9,3.9139613]
[1750410129524,0.059,2555.2,2554.9,3.9139613]
[1750410130027,0.059,2555.2,2555.0,3.91387954]
[1750410130331,6.456,2555.2,2555.0,3.91387954]
[1750410132935,6.451,2555.2,2555.1,3.97304114]
[1750410133100,0.03907112,2555.3,2555.2,3.91352898]
[1750410133295,0.40066471,2555.3,2555.2,3.91352898]
[1750410133633,0.40066471,2555.3,2555.1,3.91366456]
[1750410134132,0.40066471,2555.3,2555.2,3.91358797]
[1750410134504,16.451,2555.4,2555.2,3.91358797]
[1750410134899,10.0,2555.4,2555.3,3.91343482]
[1750410135298,10.059,2555.4,2554.5,0.801]
[1750410135506,0.03907112,2555.3,2555.0,3.91388231]
[1750410135705,0.09807112,2555.3,2555.0,3.91388231]
[1750410135902,0.03907112,2555.3,2555.1,3.9137392]
[1750410136337,0.03907112,2555.3,2555.2,3.91358797]
[1750410136523,6.49107112,2555.3,2555.2,3.91358797]
[1750410136839,0.03907112,2555.3,2555.2,3.91358797]
[1750410137540,0.03907112,2555.3,2554.3,10.0]
[1750410137541,0.766,2555.1,2554.3,10.0]
[1750410137766,0.03907112,2555.0,2554.9,3.91404751]
[1750410142543,0.03907112,2555.1,2555.0,3.91389432]
[1750410142745,0.40137851,2555.1,2555.0,3.91389432]
[1750410143105,0.03907112,2555.1,2555.0,3.91389432]
[1750410143314,0.40136513,2555.1,2555.0,3.91389432]
[1750410143515,0.40137787,2555.1,2555.0,3.91389432]
[1750410143716,0.40138508,2555.3,2555.2,3.9135523]
[1750410144250,0.4014041,2555.3,2555.2,3.9135523]
[1750410144833,0.40144735,2555.3,2555.2,3.9135523]
[1750410145242,0.40146812,2555.3,2555.2,3.9135523]
[1750410146225,0.40144757,2555.3,2555.2,3.9135523]
[1750410147371,0.4014328,2555.3,2555.2,3.9135523]
[1750410147570,0.4014328,2555.3,2554.4,0.7919]
[1750410147571,1.2105328,2555.3,2554.4,0.7919]
[1750410147867,0.36236168,2555.2,2555.1,3.91361004]
[1750410148161,0.3624074,2555.2,2555.1,3.91361004]
[1750410148364,0.3624074,2555.2,2555.1,4.70551004]
[1750410148562,0.40147852,2555.3,2555.2,3.91358797]
[1750410149064,0.03907112,2555.3,2555.1,3.91365149]
[1750410149279,0.36240372,2555.2,2555.1,3.91365149]
[1750410150452,0.36240078,2555.2,2555.1,3.91365149]
[1750410150885,0.36239521,2555.2,2555.1,3.91365149]
[1750410151289,0.36239208,2555.2,2555.1,3.91365149]
[1750410152270,0.03907112,2555.3,2555.1,3.91365149]
[1750410152471,0.36264899,2555.2,2555.1,3.91365149]
[1750410152778,0.36264899,2555.2,2555.0,3.91381753]
[1750410152978,0.03907112,2555.3,2555.1,3.91374114]
[1750410153178,0.36253783,2555.2,2555.1,3.91374114]
[1750410153377,0.3625341,2555.2,2555.1,3.91374114]
[1750410153599,0.36253417,2555.2,2555.1,3.91374114]
[1750410153899,0.36253676,2555.2,2555.1,3.91374114]
[1750410155289,0.36253676,2555.2,2554.9,4.70589439]
[1750410155491,0.25693003,2555.3,2555.1,3.91374114]
[1750410155657,0.36311039,2555.2,2555.1,3.91374114]
[1750410156701,0.36318743,2555.2,2555.1,3.91374114]
[1750410157488,0.36324809,2555.2,2555.1,3.91374114]
[1750410157683,0.36327659,2555.2,2555.1,3.91374114]
[1750410157999,0.36330518,2555.2,2555.1,3.91374114]
[1750410158386,0.36331234,2555.2,2555.1,3.91374114]
[1750410158697,0.25702017,2555.3,2555.1,3.91374114]
[1750410158899,0.36342327,2555.2,2555.1,3.91374114]
[1750410159109,0.36342327,2555.2,2555.0,3.91382189]
[1750410159404,0.36342327,2555.1,2555.0,5.60950408]
[1750410159602,0.58180145,2555.7,2555.6,3.91297542]
[1750410159770,0.36362591,2555.7,2555.6,3.91297542]
[1750410159971,0.58180145,2555.7,2555.6,3.91297542]
[1750410160392,0.36362591,2555.7,2555.6,3.91297542]
[1750410160839,10.0,2555.9,2555.7,3.91282231]
[1750410161050,0.58167302,2555.8,2555.7,3.91282231]
[1750410161185,0.36361073,2555.8,2555.7,3.91282231]
[1750410161383,0.58178493,2555.8,2555.7,3.91282231]
[1750410161692,0.36361073,2555.8,2555.7,4.69540208]
[1750410162336,0.36366688,2555.8,2555.7,3.91282231]
[1750410162497,0.42356688,2555.8,2555.5,3.91306954]
[1750410162694,7.51789355,2555.8,2555.5,3.91306954]
[1750410162908,0.36365633,2555.7,2555.6,3.91296185]
[1750410164923,0.36365633,2555.7,2555.2,0.7543]
[1750410165131,0.0599,2555.5,2555.2,3.91349487]
[1750410165285,1.15972794,2555.4,2554.8,4.70688617]
[1750410165504,0.7961,2555.6,2555.3,3.91343482]
[1750410165706,0.36360649,2555.5,2555.4,3.91322326]
[1750410166040,0.42350649,2555.5,2555.4,3.91322326]
[1750410166340,0.42346474,2555.5,2555.4,3.91322326]
[1750410166729,0.36356474,2555.5,2555.4,3.91322326]
[1750410166937,0.36356474,2555.7,2555.6,3.91297542]
[1750410167241,10.0,2555.9,2555.6,3.91297542]
[1750410167463,10.0,2555.9,2555.8,3.91266922]
[1750410167606,10.36352914,2555.9,2555.8,3.91266922]
[1750410168002,0.36358707,2555.9,2555.7,3.91275649]
[1750410168251,0.42348707,2555.8,2555.6,3.91291021]
[1750410168418,0.36358707,2555.7,2555.6,3.91291021]
[1750410168818,0.36358707,2555.7,2555.3,0.8212]
[1750410168819,0.36358707,2555.7,2555.4,3.91324557]
[1750410169036,0.36358707,2555.6,2555.5,3.91304432]
[1750410169238,0.36358707,2555.7,2555.5,3.91304432]
[1750410169452,0.36358707,2555.6,2555.5,3.91304432]
[1750410170459,0.8521,2555.5,2555.4,3.91321518]
[1750410170623,1.21571584,2555.5,2555.4,3.91321518]
[1750410170815,1.21571096,2555.5,2555.4,3.91321518]
[1750410171744,0.03907112,2555.6,2555.5,3.91312854]
[1750410171921,0.40268175,2555.6,2555.5,3.91312854]
[1750410172457,0.40269397,2555.6,2555.5,3.91312854]
[1750410172748,6.83669397,2555.6,2555.5,3.91312854]
[1750410173618,6.47307112,2555.6,2555.4,3.91321561]
[1750410173819,0.36364403,2555.5,2555.4,3.91321561]
[1750410174020,0.42034403,2555.5,2555.4,3.91321561]
[1750410174221,0.36364403,2555.5,2555.4,4.69587843]
[1750410174424,6.434,2555.6,2555.5,3.91312854]
[1750410174735,6.7976281,2555.6,2555.5,3.91312854]
[1750410174925,6.8543281,2555.6,2555.5,3.91312854]
[1750410175457,6.8543281,2555.6,2555.4,3.91320865]
[1750410175629,6.4907,2555.6,2555.5,3.91312854]
[1750410175827,6.79761198,2555.6,2555.5,3.91312854]
[1750410176682,6.79742787,2555.6,2555.5,3.91312854]
[1750410177718,6.79743542,2555.6,2555.5,3.91312854]
[1750410178260,0.8152,2555.5,2554.6,3.91450716]
[1750410178438,0.40250654,2555.4,2555.3,3.91337139]
[1750410178960,0.4025129,2555.4,2555.3,3.91337139]
[1750410179165,0.40252195,2555.4,2554.8,3.91405645]
[1750410179466,0.03907112,2555.4,2555.3,3.91343482]
[1750410179642,0.40251701,2555.4,2555.3,3.91343482]
[1750410180148,0.40251038,2555.4,2555.2,3.91349843]
[1750410180350,0.36343926,2555.3,2555.2,5.50481475]
[1750410180573,0.36343926,2555.5,2555.3,3.91328637]
[1750410180773,6.52977112,2555.6,2555.3,3.91328637]
[1750410180996,0.36329805,2555.5,2555.3,3.91328637]
[1750410181194,0.36329805,2555.5,2555.0,3.91383526]
[1750410181195,1.19529805,2555.4,2555.0,3.91383526]
[1750410181509,0.40236917,2555.3,2555.1,3.91373987]
[1750410181645,0.03907112,2555.3,2555.1,3.91373987]
[1750410182252,0.36327094,2555.2,2555.0,3.91380282]
[1750410182458,0.45900072,2555.1,2554.7,3.91427582]
[1750410182689,1.19526148,2555.0,2554.7,3.91427582]
[1750410182999,0.03907112,2555.1,2554.9,3.91404751]
[1750410183201,0.36313846,2555.0,2554.9,3.91404751]
[1750410183356,0.36313846,2555.0,2554.9,4.74614751]
[1750410183677,0.36313606,2555.2,2555.1,3.91371503]
[1750410184764,0.03907112,2555.4,2555.2,3.91345683]
[1750410184969,0.36315044,2555.3,2555.2,3.91345683]
[1750410185467,0.36315044,2555.3,2555.2,5.4864734]
[1750410185663,1.681,2555.6,2555.5,3.91312854]
[1750410185865,0.36323544,2555.6,2555.5,3.91312854]
[1750410186077,6.6910187,2555.9,2555.6,3.91297542]
[1750410186278,10.36325183,2555.8,2555.6,3.91297542]
[1750410186494,0.36325183,2555.7,2555.6,3.91297542]
[1750410186693,0.36328753,2555.7,2555.6,3.91297542]
[1750410186989,0.3633471,2555.7,2555.6,4.67973949]
[1750410187190,0.3633471,2555.7,2555.6,5.14771344]
[1750410187692,0.36347285,2555.7,2555.4,3.91322884]
[1750410187865,0.36347285,2555.6,2555.2,5.51406789]
[1750410188084,0.36357665,2555.5,2555.2,1.60061657]
[1750410188286,0.36370383,2555.4,2555.2,1.60061657]
[1750410188485,0.03907112,2555.6,2555.2,1.60061657]
[1750410188810,0.36372633,2555.5,2555.2,1.60061657]
[1750410188971,0.36372633,2555.4,2555.2,5.51411754]
[1750410189169,0.03907112,2555.6,2555.2,5.51411754]
[1750410189399,0.36372535,2555.5,2555.3,3.91343087]
[1750410189613,0.03907112,2555.6,2555.3,3.91343087]
[1750410189614,0.36371501,2555.4,2555.3,3.91343087]
[1750410189909,0.36371501,2555.5,2555.3,3.91343087]
[1750410190207,0.03907112,2555.6,2555.3,3.91343087]
[1750410190375,0.36372447,2555.5,2555.3,3.91343087]
[1750410190597,0.03907112,2555.6,2555.3,3.91343087]
[1750410190825,0.3636925,2555.5,2555.3,3.91343087]
[1750410190991,1.681,2555.9,2555.4,3.91319074]
[1750410191193,0.36372734,2555.8,2555.5,3.91304736]
[1750410191533,0.36372734,2555.7,2555.5,3.91312854]
[1750410191841,0.36372734,2555.6,2555.5,3.91312854]
[1750410191987,0.36372734,2555.6,2555.4,3.91319218]
[1750410192192,0.36372734,2555.5,2555.4,3.91319218]
[1750410192393,0.36372734,2555.7,2555.4,4.87193141]
[1750410192634,0.36372734,2555.6,2555.4,3.91319218]
[1750410192840,0.36372734,2555.5,2555.4,3.91319218]
[1750410192998,0.36372734,2555.7,2555.4,3.91319218]
[1750410193197,0.36372734,2555.6,2555.4,3.91319218]
[1750410193429,0.36363178,2555.5,2555.4,3.91319218]
[1750410193741,0.36363178,2555.7,2555.4,4.87193141]
[1750410193940,0.36363178,2555.6,2555.4,4.87193141]
[1750410194110,0.36363178,2555.5,2555.4,4.87193141]
[1750410194308,0.36363178,2555.7,2555.4,4.87193141]
[1750410194623,0.3636551,2555.6,2555.4,4.87193141]
[1750410194796,0.3636551,2555.5,2555.4,4.87193141]
[1750410195090,0.3636551,2555.7,2555.4,4.87193141]
[1750410195290,0.3636551,2555.6,2555.4,4.87193141]
[1750410195557,3.9517551,2555.8,2555.4,0.95873923]
[1750410195845,0.36362926,2555.7,2555.3,3.91335718]
[1750410196140,3.9517551,2555.8,2555.3,3.91335718]
[1750410196314,0.36363438,2555.7,2555.3,3.91335718]
[1750410196502,0.36363438,2555.6,2555.3,3.91335718]
[1750410196703,10.0,2555.9,2555.4,3.91326227]
[1750410196916,0.36360434,2555.8,2555.5,4.3082952]
[1750410197202,0.36360434,2555.7,2555.6,0.8157]
[1750410197627,0.36358149,2555.7,2555.6,0.8157]
[1750410198330,0.36359714,2555.7,2555.6,0.8157]
[1750410202142,0.36355062,2555.7,2555.6,0.8157]
[1750410203021,0.36355062,2555.8,2555.6,5.24109051]
[1750410203221,0.36355062,2555.7,2555.6,5.24109051]
[1750410203560,0.36355062,2555.9,2555.7,3.91282183]
[1750410203859,12.02512671,2556.2,2555.7,3.91282183]
[1750410203860,0.36355062,2555.8,2555.7,3.91282183]
[1750410204178,0.36355062,2555.8,2555.6,5.24099949]
[1750410204323,13.91222135,2556.1,2555.7,4.4764294]
[1750410204526,0.36362214,2556.0,2555.7,3.91280553]
[1750410204722,0.36357608,2555.9,2555.8,3.91263924]
[1750410204941,0.36361958,2555.9,2555.7,3.91275479]
[1750410205256,0.36361958,2555.8,2555.7,3.91275479]
[1750410205437,0.36361958,2556.1,2555.7,3.91275479]
[1750410205620,0.36361958,2556.0,2555.7,3.91275479]
[1750410205820,20.34408375,2556.2,2555.7,3.91275479]
[1750410206064,0.36360384,2556.1,2555.7,3.91275479]
[1750410206264,0.36360384,2556.0,2555.7,3.91275479]
[1750410206438,0.36360384,2555.9,2555.7,3.91275479]
[1750410206634,0.36360384,2555.8,2555.7,4.99764997]
[1750410206839,0.36360384,2556.0,2555.8,3.91264164]
[1750410207040,0.36350128,2555.9,2555.8,3.91264164]
[1750410207243,0.36350128,2555.9,2555.7,4.99763013]
[1750410207431,20.34407947,2556.2,2555.7,4.99763013]
[1750410207633,0.36344843,2556.1,2555.7,4.99763013]
[1750410207833,0.36340083,2556.0,2555.7,4.99763013]
[1750410208033,3.91223099,2556.1,2555.7,4.99763013]
[1750410208262,0.36339238,2556.0,2555.7,4.99763013]
[1750410208565,0.36336326,2555.9,2555.8,0.63257452]
[1750410208864,0.36336326,2556.0,2555.9,3.91251613]
[1750410209050,0.36336326,2556.1,2555.9,3.91251613]
[1750410209362,0.36326325,2556.2,2555.8,4.54523365]
[1750410209562,0.36326325,2556.1,2556.0,3.91233484]
[1750410209762,0.36326325,2556.3,2556.0,0.92338258]
[1750410209966,0.36326325,2556.2,2556.0,0.92338258]
[1750410210163,12.33373034,2556.4,2556.0,0.92338258]
[1750410210731,0.36314834,2556.3,2556.0,0.92338258]
[1750410210932,12.33373034,2556.4,2556.0,0.92338258]
[1750410210933,0.36314834,2556.2,2556.0,0.92338258]
[1750410211147,0.36314988,2556.3,2556.1,0.56123212]
[1750410211364,0.36314641,2556.2,2556.1,0.56123212]
[1750410211572,0.36314641,2556.3,2556.1,0.56123212]
[1750410211758,0.36314641,2556.2,2556.1,0.56123212]
[1750410211968,0.36314641,2556.3,2556.1,0.56123212]
[1750410212161,12.33382032,2556.4,2556.2,0.44735821]
[1750410212340,0.36306397,2556.3,2556.2,0.44735821]
[1750410213367,4.27497709,2556.3,2555.9,4.68892594]
[1750410213681,0.36322316,2556.2,2555.9,4.68892594]
[1750410213881,0.36322316,2556.1,2555.9,4.68892594]
[1750410214034,0.36322316,2556.2,2555.9,4.68892594]
[1750410214230,0.36322316,2556.1,2555.9,4.68892594]
[1750410214442,3.91191312,2556.3,2556.0,0.46889259]
[1750410214443,0.36322316,2556.2,2556.0,0.46889259]
[1750410214674,0.36325947,2556.1,2556.0,0.46889259]
[1750410214890,0.36329702,2556.1,2555.7,1.08489518]
[1750410215035,10.6535487,2555.9,2555.4,3.91319535]
[1750410215369,6.74096015,2555.7,2555.4,3.91319535]
[1750410215589,6.74096015,2555.7,2555.3,4.66607136]
[1750410215743,6.80106015,2555.7,2555.3,4.66607136]
[1750410215950,6.80106015,2555.7,2555.4,0.85796349]
[1750410216149,6.74096015,2555.7,2555.4,0.85796349]
[1750410216344,10.71394673,2555.7,2555.4,0.85796349]
[1750410216579,7.57996015,2555.7,2555.4,0.85796349]
[1750410216968,6.429,2555.8,2555.5,3.91306262]
[1750410217197,0.36349735,2555.7,2555.5,0.86844118]
[1750410217496,0.36348758,2555.7,2555.5,0.86844118]
[1750410217996,6.46807112,2555.8,2555.5,0.86844118]
[1750410218200,0.3635295,2555.7,2555.5,4.78155918]
[1750410218349,0.36353432,2555.7,2555.6,4.78245819]
[1750410218549,6.79253432,2556.0,2555.6,4.78245819]
[1750410218880,0.36353432,2555.9,2555.6,4.78245819]
[1750410219075,0.36353432,2555.8,2555.6,4.78245819]
[1750410219396,0.36354241,2555.7,2555.6,4.78245819]
[1750410219564,0.36354241,2555.9,2555.6,4.78245819]
[1750410219770,0.36354241,2555.8,2555.6,4.78245819]
[1750410219968,13.16996015,2556.0,2555.7,0.55585582]
[1750410220179,0.36358475,2555.9,2555.7,3.91282211]
[1750410220367,0.36358475,2555.8,2555.7,3.91282211]
[1750410220768,0.36358475,2555.8,2555.6,4.78237706]
[1750410220968,0.36358064,2555.7,2555.6,4.78237706]
[1750410221369,0.36360305,2555.7,2555.6,4.78237706]
[1750410221568,0.36360302,2555.7,2555.6,4.78237706]
[1750410222083,0.36360387,2555.7,2555.6,4.78237706]
[1750410223593,0.36360387,2555.7,2555.6,0.86948277]
[1750410223796,0.36360387,2555.9,2555.7,0.7504]
[1750410223970,0.36369602,2556.3,2556.2,3.91205695]
[1750410224158,0.36369602,2556.3,2556.2,3.95117282]
[1750410224355,0.36369602,2556.3,2556.2,3.91205695]
[1750410224580,0.36369602,2556.3,2556.2,4.76952049]
[1750410224865,0.36369602,2556.3,2556.2,0.85746354]
[1750410225264,1.15489602,2556.4,2556.0,3.91222425]
[1750410225616,0.36369602,2556.3,2556.0,3.91222425]
[1750410225816,0.7912,2556.4,2556.1,3.91213878]
[1750410226128,0.36359454,2556.3,2556.1,3.91213878]
[1750410226414,0.7912,2556.4,2556.1,3.91213878]